Cogmind - Beta 14 @@@ ROGUE MODE // 2025.03.01 @ 19:08:53 Player: opdo Result: Destroyed by Y5-0LM(R) with Subdweller Laser Performance ------------- Evolutions (0) 0 Regions Visited (2) 400 Robots Destroyed (17) 85 Value Destroyed (302) 302 Prototype IDs (0) 0 Alien Tech Used (0) 0 Bonus (0) 0 TOTAL SCORE: 787 Bonus ------- None Cogmind --------- Core Integrity 0/250 Matter 250/300 Energy 200/200 System Corruption 0% Temperature Cool (6) Movement Core (250) Ox4 Location -10/Subcaves Parts ------- > --- POWER (1) -------- Subdweller Power Source > --- PROPULSION (2) --- (None) > --- UTILITY (2) ------ Sensor Array Makeshift Light Armor Plating > --- WEAPON (2) ------- Light Assault Rifle Barrage Gun > --- INVENTORY (5) ---- Assault Rifle Light Assault Rifle Subdweller Shrapnel Launcher Mining Laser Shrapnel Trap Peak State ------------ > --- POWER ------------ Subdweller Power Source > --- PROPULSION ------- Subdweller Monowheel Flight Unit > --- UTILITY ---------- Sensor Array Makeshift Light Armor Plating > --- WEAPON ----------- Light Assault Rifle Barrage Gun > --- INVENTORY -------- Seismic Detector Assault Rifle Light Assault Rifle Subdweller Shrapnel Launcher Mining Laser [Rating: 14] Favorites ----------- Power Light Ion Engine Engine Light Ion Engine Propulsion Aluminum Leg Leg Aluminum Leg Wheel Subdweller Monowheel Flight Unit Flight Unit Utility Small Storage Unit Device Terrain Scanner Storage Small Storage Unit Protection Makeshift Light Armor Plating Weapon Light Assault Rifle Ballistic Gun Light Assault Rifle Special Weapon Mining Laser Build | -11 -10 -10 ------- Run | Yrd Mat Sub Slots Evolved . | . . . Power . | . . . Propulsion . | . . . Utility . | . . . Weapon . | . . . Parts Attached 24 | 6 7 11 Power 5 | 1 3 1 Engine 5 | 1 3 1 Core . | . . . Reactor . | . . . Propulsion 5 | 2 . 3 Treads . | . . . Leg 2 | 2 . . Wheel 1 | . . 1 Hover . | . . . Flight 2 | . . 2 Utility 7 | 1 3 3 Device 5 | . 3 2 Storage 1 | 1 . . Processor . | . . . Hackware . | . . . Protection 1 | . . 1 Artifact . | . . . Weapon 7 | 2 1 4 Energy Gun . | . . . Energy Cannon . | . . . Ballistic Gun 6 | 2 1 3 Ballistic Cannon . | . . . Launcher . | . . . Special Weapon 1 | . . 1 Impact Weapon . | . . . Slashing Weapon . | . . . Piercing Weapon . | . . . Special Melee Weapon . | . . . Unidentified Prototypes . | . . . Parts Lost 7 | . 1 6 Power 2 | . 1 1 Propulsion 3 | . . 3 Utility 1 | . . 1 Weapon 1 | . . 1 Highest Loss Streak 4 | . 1 4 To Critical Strikes . | . . . Average Slot Usage (%) 95 | . 98 89 Engine 13 | . 13 12 Leg 23 | . 28 13 Flight 2 | . . 8 Device 12 | . 12 12 Storage 11 | . 14 7 Protection 1 | . . 4 Ballistic Gun 27 | . 28 26 Peak Build Rating 14 | 6 9 14 Average Rating 7 | 5 6 9 On Entrance 5 | . 6 9 Naked Turns . | . . . Heaviest Build 14 | 10 13 14 Greatest Support 20 | 20 20 20 Greatest Overweight (x) 3 | 3 . 1 Average Overweight (x) . | . . . Largest Inventory Capacity 8 | 8 8 8 Average Capacity 7 | 7 8 6 Most Carried 8 | 4 8 8 Average Carried 6 | 2 7 6 Final Capacity 8 | 8 8 5 Final Carried 8 | 4 8 5 Class Distribution -------------------- 100% | Mutant Dominant Class ---------------- Mutant | -10/Materials Mutant | -10/Subcaves Resources | -11 -10 -10 ----------- Run | Yrd Mat Sub Matter Collected 522 | 170 244 108 Remotely . | . . . Salvage Created 544 | 129 372 43 Parts 42 | 7 33 2 Haulers Intercepted . | . . . Recyclers Shooed 3 | 1 2 . Parts Field Recycled . | . . . Retrieved Matter . | . . . Parts Self-Destructed 3 | . . 3 Prevented . | . . . Kills | -11 -10 -10 ------- Run | Yrd Mat Sub Combat Hostiles Destroyed 11 | . 10 1 Guns 11 | . 10 1 Classes Destroyed 5 | 2 2 1 Tunneler 4 | 2 2 . Recycler 2 | 1 1 . Swarmer 6 | . 6 . Grunt 4 | . 4 . Subdweller 1 | . . 1 Best Kill Streak 5 | 3 5 1 Combat Bots Only 5 | . 5 1 Max Kills in Single Turn 1 | 1 1 1 Gunslinging . | . . . Exploded . | . . . Melee . | . . . Uniques/NPCs Destroyed . | . . . Combat | -11 -10 -10 -------- Run | Yrd Mat Sub Hostile Shots Fired 83 | . 41 42 Missed 16 | . 11 5 Damage Taken 1055 | . 296 759 Core 269 | . 68 201 Absorbed by Shields . | . . . Core Remaining (%) 100 | 100 . . Volleys Fired 87 | 12 46 29 Largest 2 | 2 2 2 Hottest 120 | 40 40 120 Shots Fired 173 | 24 92 57 Gun 168 | 24 92 52 Cannon . | . . . Launcher . | . . . Special 5 | . . 5 Kinetic 168 | 24 92 52 Thermal 5 | . . 5 Explosive . | . . . Electromagnetic . | . . . Robot Hit Streak 26 | 14 10 26 Robot Miss Streak 3 | 3 3 2 Penetration Max . | . . . Secondary Targets 1 | . 1 . Max Gunslinging Chain 1 | . 1 . Shots Hit Robots 117 | 16 62 39 Core Hits 43 | 6 32 5 Critical Kills 1 | . 1 . Critical Parts Destroyed 2 | . 1 1 Critical Strikes 3 | . 2 1 Destroy 3 | . 2 1 Melee Attacks . | . . . Impact . | . . . Slashing . | . . . Piercing . | . . . Sneak Attacks . | . . . Combat Hostiles . | . . . Follow-up Attacks . | . . . Damage Inflicted 992 | 146 515 331 Guns 966 | 131 504 331 Cannons . | . . . Explosions . | . . . Melee . | . . . Ramming 26 | 15 11 . Kinetic 966 | 131 504 331 Thermal . | . . . Explosive . | . . . Electromagnetic . | . . . Impact . | . . . Slashing . | . . . Piercing . | . . . Highest Corruption . | . . . Average Corruption . | . . . Corruption Purged . | . . . Corruption Blocked . | . . . Overload Shots . | . . . Overflow Damage . | . . . Projectiles . | . . . Explosions . | . . . Melee . | . . . Knockbacks 1 | . 1 . Impact 1 | . 1 . Kinetic . | . . . Secondary . | . . . Self-Inflicted Damage . | . . . Shots . | . . . Rammed . | . . . Targets Rammed 6 | 3 3 . Kicked 6 | 3 3 . Crushed . | . . . Highest Temperature 18 | . 18 1 Average Temperature 8 | . 10 1 Received Heat Transfer 300 | . 78 222 Siege Activations . | . . . Robots Corrupted . | . . . Combat Hostiles . | . . . Parts Fried . | . . . Impact Corruptions . | . . . Robots Melted . | . . . Combat Hostiles . | . . . Parts Melted . | . . . Heat Transferred . | . . . Parts Sabotaged . | . . . Parts Stolen . | . . . Parts Stripped . | . . . Power Chain Reactions . | . . . Alert | -11 -10 -10 ------- Run | Yrd Mat Sub Peak Influence 238 | 15 238 . Initial 9 | . 9 . Average 81 | 4 96 . Maximum Alert Level 1 | . 1 . Low Security (%) 85 | 100 82 . Level 1 14 | . 17 . Level 2 . | . . . Level 3 . | . . . Level 4 . | . . . Level 5 . | . . . High Security . | . . . Max Security . | . . . Squads Dispatched . | . . . Investigation . | . . . Extermination . | . . . Reinforcement . | . . . Assault . | . . . Garrison . | . . . Intercept . | . . . Searches Triggered . | . . . Construction Impeded . | . . . Haulers Reinforced . | . . . Active Scanning Responses . | . . . Cargo Convoy Interrupts . | . . . Stealth | -11 -10 -10 --------- Run | Yrd Mat Sub Distress Signals 2 | . 2 . Communications Jammed . | . . . Distress Signals . | . . . Times Spotted 21 | . 17 4 Peak Tracking Total 5 | . 5 2 Tactical Retreats 4 | . 3 1 Traps | -11 -10 -10 ------- Run | Yrd Mat Sub Traps Triggered . | . . . Indirectly . | . . . Trap Hack Attempts . | . . . Triggered . | . . . Disarmed . | . . . Reprogrammed . | . . . Reused . | . . . Traps Extracted . | . . . Installed . | . . . Triggered . | . . . Most Traps Carried 1 | . . 1 Machines | -11 -10 -10 ---------- Run | Yrd Mat Sub Machines Disabled . | . . . Max in Single Turn . | . . . Machines Repaired . | . . . Machines Dismantled . | . . . Machines Sabotaged . | . . . Overloaded Fab Kills . | . . . Hacking | -11 -10 -10 --------- Run | Yrd Mat Sub Machines Accessed 2 | . 2 . Terminals 2 | . 2 . Fabricators . | . . . Repair Stations . | . . . Recycling Units . | . . . Scanalyzers . | . . . Garrison Access . | . . . Total Hacks 5 | . 5 . Successful 3 | . 3 . Failed 2 | . 2 . Catastrophic . | . . . Database Lockouts . | . . . Manual 5 | . 5 . Terminals 5 | . 5 . Fabricators . | . . . Repair Stations . | . . . Recycling Units . | . . . Scanalyzers . | . . . Garrison Access . | . . . Terminal Hacks 1 | . 1 . Robot Analysis 1 | . 1 . Fabricator Hacks . | . . . Repair Station Hacks . | . . . Recycling Unit Hacks . | . . . Scanalyzer . | . . . Garrison Access Hacks . | . . . Unauthorized Hacks 2 | . 2 . Terminals 2 | . 2 . Botnet 2 | . 2 . Fabricators . | . . . Repair Stations . | . . . Recycling Units . | . . . Scanalyzers . | . . . Garrison Access . | . . . Data Cores Recovered . | . . . Used . | . . . Hacking Detections 2 | . 2 . Full Trace Events . | . . . Feedback Events . | . . . Feedback Blocked . | . . . Robot Schematics Acquired . | . . . Robots Built . | . . . Authchips . | . . . Time . | . . . Total Robot Build Rating . | . . . Part Schematics Acquired . | . . . Parts Built . | . . . Authchips . | . . . Time . | . . . Total Part Build Rating . | . . . Parts Repaired . | . . . Time . | . . . Parts Recycled . | . . . Recycled Matter . | . . . Retrieved Matter . | . . . Retrieved Components . | . . . Parts Scanalyzed . | . . . Part Schematics Acquired . | . . . Parts Damaged . | . . . Bothacking | -11 -10 -10 ------------ Run | Yrd Mat Sub Used RIF Installer . | . . . Robots Hacked . | . . . Non-combat . | . . . Combat . | . . . Robot Hacks Applied . | . . . Relay Couplers Released . | . . . Fabnet Peak Effective % . | . . . Robots Rewired . | . . . Allies Hacked . | . . . Hacks Repelled . | . . . Allies | -11 -10 -10 -------- Run | Yrd Mat Sub Total Allies . | . . . Largest Group . | . . . Highest-Rated Group . | . . . Highest-Rated Ally . | . . . Total Orders . | . . . Ally Attacks . | . . . Total Damage . | . . . Kills . | . . . Allies Corrupted . | . . . Allies Melted . | . . . Intel | -11 -10 -10 ------- Run | Yrd Mat Sub Robot Analysis Total 1 | . 1 . Derelict Logs Recovered 1 | . . 1 Drone Launches . | . . . Drone Recoveries . | . . . Exploration | -11 -10 -10 ------------- Run | Yrd Mat Sub Turns Passed 866 | 104 529 233 Spaces Moved 504 | 49 303 152 Core 8 | 8 . . Treads . | . . . Legs 402 | 41 303 58 Wheels 16 | . . 16 Hover . | . . . Flight 78 | . . 78 Fastest Speed 37 | 50 120 37 Average Speed 107 | 116 120 79 Slowest Speed 200 | 200 120 190 Overloaded Moves . | . . . Propulsion Burnouts . | . . . Robots Hopped . | . . . Cave-ins Triggered . | . . . Exploration Rate (%) 20 | 3 47 11 Regions Visited 2 Branch Regions 1 Pre-discovered Areas . | . . . Known Exits Taken . | . . . Unknown Exits Taken 2 | 1 1 . Scrap Searched 3 | . . 3 Spaces Dug . | . . . Terrain Destroyed . | . . . Melee . | . . . Projectile . | . . . AOE . | . . . Terrain Rammed . | . . . Walls Destroyed . | . . . Machines Disabled . | . . . Actions | -11 -10 -10 --------- Run | Yrd Mat Sub Total 674 | 73 395 206 Wait 27 | . 23 4 Move 502 | 48 302 152 Hop . | . . . Pick Up 15 | 4 7 4 Fast Attach 11 | 6 1 4 Attach 6 | . 2 4 Detach 1 | . 1 . Swap 7 | . 4 3 Drop 12 | . 6 6 Fire 87 | 12 46 29 Melee . | . . . Ram . | . . . Kick 6 | 3 3 . Crush . | . . . Escape Stasis . | . . . Rewire . | . . . Trap . | . . . Miscellaneous . | . . . Route ------- -11/Scrapyard -10/Materials (discovered 3 exits: [*Mat] / [*Min] / [*Sub]) -10/Subcaves History --------- Turn | Location | Event 24 | -11/Scrapyard | Discovered new exit (range 16) 105 | -11/Scrapyard | Entered Materials 196 | -10/Materials | Discovered new exit (range 16) 309 | -10/Materials | Build established: Mutant 321 | -10/Materials | Discovered new exit (range 16) 596 | -10/Materials | Discovered new exit (range 10) 634 | -10/Materials | Entered Subcaves 742 | -10/Subcaves | Core integrity fell below 50% 770 | -10/Subcaves | Lost 4 parts (1p1n1u1w) 788 | -10/Subcaves | Learned Materials stockpile data 810 | -10/Subcaves | Disturbed a concealed Subdweller 840 | -10/Subcaves | Core integrity fell below 20% 867 | -10/Subcaves | Destroyed by Y5-0LM(R) with Subdweller Laser Last Messages --------------- 00789_ Found 70 Matter. 00790_ Acquired 10 matter. 00790_ Searching scrap... 00790_ Found Barrage Gun. 00790_ Found Shrapnel Trap. 00790_ Found 49 Matter. 00790_ Searching scrap... 00790_ Found Sub. Monowheel. 00790_ Found 56 Matter. 00792_ Acquired Mak. Light Armor Plating. 00798_ Acquired 20 matter. 00801_ Dropped Flight Unit. 00801_ Acquired Sub. Monowheel. 00803_ Acquired 10 matter. 00808_ Dropped Seismic Detector. 00809_ Acquired Shrapnel Trap. 00810_ Y5-0LM(R) angrily emerges from the Twisted Machinery. 00847_ Sub. Monowheel destroyed. 00849_ Flight Unit destroyed. Map ----- +----------------------------------------------------+ | ?????????????????????????????????????????????????? | | ?????????????????????????????????????????????????? | | ?????????????????????????????????????????????????? | | ?????????????????????????????????????????????????? | | ?????????????????????????????????????????????????? | | ?????????????????????????????????????????????????? | | ?????????????????????????????????????????????????? | | ?????????????????????????????????????????????????? | | ?????????????????????????????????????????????????? | | ?????????????????????????????????????????????????? | | ?????????????????????????????????????????????????? | | ?????????????????????????????????????????????????? | | ??????????????????????????????????????????????##?? | | ????????????????????????????????????????????? ##? | | ???????????????????????????????????????????? | | ???????????????????????????????????????????# | | ????????????????????????????????????####### | | ????????????????????###??#####???#### ? | | ????????????????????#%#### #??## #?? | | ????????????????????# "# #" #### #??? | | ????????????????????#%%# ## #??? | | ????????????????????#"&# #" R #??? | | ????????????????????##=!"## #????????? | | ?????????????????????##### # ### ##???????? | | ??????????????????????### ####?# ##??????? | | ??????????????????????# @ ##????# ##??#??? | | ??????????????????????## ###?????# ## ##?? | | ???????????????????????###???????## #?? | | ??????????????????????###?#####???# ##?? | | ??????????????????????# ## =%###?# ###??? | | ??????????????????????# """"### ! ###????? | | ???????????????????????# " """ ##??????? | | ???????????????????????# ] #%]" #####???????? | | ??????????????????????##"" ##### #???????????? | | ???????????????????#??#"" ##???###"" #??????????? | | ???????????????????# ## ####?###" #??????????? | | ????????????????# # " # ## ????????? | | ?????????? " ???????? | | ???????????#% # ##### " % ??????? | | ???????????#????##?????## "" ####" % #?????? | | ???????????????????????## " #???#% ## #?????? | | ???????????????????????# """"#???###?? #?????? | | ???????????????????????# "####???????? #?????? | | ???????????????????????# ##????#???? % ?????? | | ????????????????????#??# ##?????? ??? ### ????? | | ??????????????????????## ""#???????????#?# ??????? | | ??????????????????????# ##??#?????? ???????????? | | ??????????????????????# #####?????????????????? | | ??????????????????????## # #?????????????????? | | ???????????????????#### ###????????????????? | +----------------------------------------------------+ Best States ------------- Heat Dissipation 25 Coolant Potential 50 Energy Generation 15 Energy Capacity 250 Matter Stores 300 Matter Capacity 300 Sight Range 16 Robot Scan Range 14 Terrain Scan Range 16 Terrain Scan Density 10 Armor Coverage 100 Evasion (%) 62 Item Schematics ----------------- None Robot Schematics ------------------ None Fabricated ------------ Nothing Alien Tech Used ----------------- None Achievements -------------- None Challenges ------------ None Game ------ Seed PiercingThrowingCore Manual? 0 Play Time 00:07:33 Cumulative 74.0 hours Start 2025.03.01 @ 19:03:19 End 2025.03.01 @ 19:08:53 Sessions 1 Manual Loads 0 Difficulty Rogue Special Mode None Game No. 210 Rogue 208 Adventurer 2 Explorer 0 Win Type - Total 1 Types 1/0/0/0/0/0/0/0/0 Lore% 67 Gallery% 61 Achievement% 46 Wizard Run 0 Options --------- Layout 2 ASCII 0 Keyboard 0 Movement Arrows Keybinds 0 Fullscreen 2 Font 24/Smallcaps Map View 50x44 Zoom Use 0% Tactical HUD 1 Map Filters NONE Filters NONE Steam 1 RUN: 0226108c-39bd-4fc7-be00-b93bf92837d5